bitfinex/quotes_BTCUSD_20250330
["timestamp","ask_amount","ask_price","bid_price","bid_amount"]
[1743299618096,0.3001685,83104.0,83103.0,0.26607685]
[1743299618976,0.3122015,83104.0,83103.0,0.26607685]
[1743299619494,0.5528635,83104.0,83103.0,0.26607685]
[1743299621769,0.5408305,83104.0,83103.0,0.26607685]
[1743299622072,0.3001685,83104.0,83103.0,0.26607685]
[1743299622274,0.5528635,83104.0,83103.0,0.26607685]
[1743299622451,0.3001685,83104.0,83103.0,0.26607685]
[1743299622978,0.3122015,83104.0,83103.0,0.26607685]
[1743299623173,0.3001685,83104.0,83103.0,0.26607685]
[1743299624119,0.3001685,83104.0,83103.0,0.50674185]
[1743299624325,0.3001685,83104.0,83103.0,0.27810985]
[1743299625510,0.3001685,83104.0,83103.0,0.26607685]
[1743299626313,0.3001685,83104.0,83103.0,0.27810985]
[1743299626536,0.3001685,83104.0,83103.0,0.26607685]
[1743299627101,0.3122015,83104.0,83103.0,0.26607685]
[1743299630824,0.3122015,83104.0,83103.0,0.173436]
[1743299635335,0.0001685,83104.0,83103.0,0.23041715]
[1743299635540,0.0001685,83104.0,83103.0,0.31221715]
[1743299635940,0.0001685,83104.0,83103.0,0.30018415]
[1743299637578,0.0122015,83104.0,83103.0,0.30018415]
[1743299637955,0.0122015,83104.0,83103.0,0.26977685]
[1743299638765,0.0001685,83104.0,83103.0,0.26977685]
[1743299642786,0.0001685,83104.0,83103.0,0.52247485]
[1743299653933,0.0001685,83104.0,83103.0,0.26977685]
[1743299654187,0.0122015,83104.0,83103.0,0.26977685]
[1743299654579,0.0001685,83104.0,83103.0,0.26977685]
[1743299655342,0.0001685,83104.0,83103.0,0.34022583]
[1743299655576,0.0001685,83104.0,83103.0,0.28180985]
[1743299656206,0.0001685,83104.0,83103.0,0.26977685]
[1743299657199,0.0001685,83104.0,83103.0,0.52247485]
[1743299657984,0.00047893,83108.0,83107.0,0.02657285]
[1743299658214,0.00047893,83108.0,83107.0,0.26722585]
[1743299658450,0.00047893,83108.0,83107.0,0.35085888]
[1743299659108,0.00047893,83108.0,83107.0,0.42675888]
[1743299660178,0.00047893,83108.0,83107.0,0.47245888]
[1743299660874,0.00047893,83108.0,83107.0,0.47645888]
[1743299660988,0.00047893,83108.0,83107.0,0.47445888]
[1743299661194,0.00047893,83108.0,83107.0,0.47245888]
[1743299661433,0.00047893,83108.0,83107.0,0.48827174]
[1743299661638,0.00047893,83108.0,83107.0,0.48045888]
[1743299663883,0.31219364,83119.0,83116.0,0.012031]
[1743299664562,0.01219364,83119.0,83117.0,0.01454085]
[1743299664766,0.25265,83119.0,83118.0,0.03300633]
[1743299664962,0.01203,83119.0,83118.0,0.03300633]
[1743299666684,0.01203,83119.0,83118.0,0.01554085]
[1743299667652,0.02418134,83119.0,83118.0,0.01654085]
[1743299668459,0.240618,83120.0,83119.0,0.01454085]
[1743299669660,0.252648,83120.0,83119.0,0.18565482]
[1743299670416,0.552648,83120.0,83119.0,0.18565482]
[1743299670646,0.56476637,83120.0,83119.0,0.18565482]
[1743299670948,0.56476637,83120.0,83119.0,0.18665482]
[1743299673207,0.56493497,83120.0,83119.0,0.18665482]
[1743299676518,0.56485097,83120.0,83119.0,0.18665482]
[1743299676718,0.32431697,83120.0,83119.0,0.2065234]
[1743299676964,0.31228697,83120.0,83119.0,0.2065234]
[1743299678312,0.31228697,83120.0,83119.0,0.18665482]
[1743299679253,0.31228697,83120.0,83119.0,0.19868482]
[1743299679599,0.31228697,83120.0,83119.0,0.24628482]
[1743299680567,0.31228697,83120.0,83119.0,0.23425482]
[1743299682923,0.32431697,83120.0,83119.0,0.23425482]
[1743299685755,0.32431697,83120.0,83119.0,0.23459202]
[1743299695568,0.11874865,83120.0,83119.0,0.23459202]
[1743299697708,0.0001686,83120.0,83119.0,0.23459202]
[1743299697908,0.0001686,83120.0,83119.0,0.27828122]
[1743299699310,0.0001686,83120.0,83119.0,0.24662202]
[1743299700926,0.0001686,83120.0,83119.0,0.23459202]
[1743299703520,0.2407836,83120.0,83119.0,0.23459202]
[1743299703922,0.2528136,83120.0,83119.0,0.23459202]
[1743299706031,0.5528136,83120.0,83119.0,0.18699202]
[1743299706178,0.5528136,83120.0,83119.0,0.17245117]
[1743299706391,0.552695,83104.0,83103.0,0.000337]
[1743299706591,0.675195,83104.0,83103.0,0.000337]
[1743299706879,0.3,83104.0,83103.0,0.000337]
[1743299707046,0.312033,83104.0,83103.0,0.000337]
[1743299708314,0.312033,83104.0,83103.0,0.002337]
[1743299708737,0.312033,83104.0,83103.0,0.005337]
[1743299708913,0.312033,83104.0,83103.0,0.000337]
[1743299709315,0.312033,83104.0,83103.0,0.002337]
[1743299709978,0.312033,83104.0,83103.0,0.004337]
[1743299710395,0.552695,83104.0,83103.0,0.004337]
[1743299712375,0.57656748,83104.0,83103.0,0.004337]
[1743299713206,0.59543881,83104.0,83103.0,0.004337]
[1743299715978,0.57656748,83104.0,83103.0,0.004337]
[1743299716593,0.57656748,83104.0,83103.0,0.17445097]
[1743299723341,0.59543841,83104.0,83103.0,0.17445097]
[1743299723745,0.59543841,83104.0,83103.0,0.17245097]
[1743299725053,0.59543841,83104.0,83103.0,0.17045097]
[1743299725885,0.57656748,83104.0,83103.0,0.17045097]
[1743299730247,0.59543842,83104.0,83103.0,0.17045097]
[1743299730603,0.57656748,83104.0,83103.0,0.17045097]
[1743299734359,0.57856748,83104.0,83103.0,0.17045097]
[1743299734786,0.57656748,83104.0,83103.0,0.17045097]
[1743299734994,0.57856748,83104.0,83103.0,0.17045097]
[1743299735500,0.58256748,83104.0,83103.0,0.17045097]
[1743299735731,0.58056748,83104.0,83103.0,0.17045097]
[1743299735933,0.57656748,83104.0,83103.0,0.17045097]
[1743299738150,0.57656748,83104.0,83103.0,0.17145097]
[1743299741687,0.59543885,83104.0,83103.0,0.17145097]
[1743299742206,0.6307555,83104.0,83103.0,0.17145097]
[1743299745722,0.61188413,83104.0,83103.0,0.17145097]
[1743299750464,0.63075558,83104.0,83103.0,0.17145097]
[1743299750779,0.63075558,83104.0,83103.0,0.17045097]
[1743299750992,0.63275558,83104.0,83103.0,0.17045097]
[1743299751383,0.63075558,83104.0,83103.0,0.17045097]
[1743299751765,0.63275558,83104.0,83103.0,0.17045097]
[1743299751968,0.63475558,83104.0,83103.0,0.17045097]
[1743299752410,0.64602398,83104.0,83103.0,0.17045097]
[1743299752611,0.64602398,83104.0,83103.0,0.13273753]
[1743299752809,0.61070733,83104.0,83103.0,0.13273753]
[1743299754319,0.59943893,83104.0,83103.0,0.13273753]
[1743299754893,0.73575893,83104.0,83103.0,0.13273753]
[1743299755674,0.73575893,83104.0,83103.0,0.13307473]
[1743299755906,0.71688748,83104.0,83103.0,0.13307473]
[1743299760886,0.73575884,83104.0,83103.0,0.13307473]
[1743299762646,0.77108505,83104.0,83103.0,0.13307473]
[1743299765878,0.75221369,83104.0,83103.0,0.13307473]
[1743299768569,0.75238229,83104.0,83103.0,0.13307473]
[1743299770971,0.77125372,83104.0,83103.0,0.13307473]
[1743299775840,0.75238229,83104.0,83103.0,0.13307473]
[1743299780942,0.77125498,83104.0,83103.0,0.13307473]
[1743299784013,0.77125498,83104.0,83103.0,0.25987473]
[1743299784014,0.3583675,83104.0,83103.0,0.25987473]
[1743299784226,0.32304129,83104.0,83103.0,0.25987473]
[1743299784382,0.02304129,83104.0,83103.0,0.52711358]
[1743299784587,0.0041686,83104.0,83103.0,0.52711358]
[1743299784788,0.10819358,83106.0,83105.0,0.26723185]
[1743299784992,0.10819358,83106.0,83105.0,0.52260078]
[1743299786106,0.10919358,83106.0,83105.0,0.52260078]
[1743299786322,0.10919358,83106.0,83105.0,0.62667198]
[1743299786646,0.10819358,83106.0,83105.0,0.62667198]
[1743299786840,0.10819358,83106.0,83105.0,0.62867198]
[1743299787925,0.10819358,83106.0,83105.0,0.52560078]
[1743299788333,0.012031,83112.0,83107.0,0.01454085]
[1743299788529,0.012031,83112.0,83109.0,0.01454085]
[1743299788734,0.012031,83112.0,83111.0,0.09554085]
[1743299789247,0.012031,83114.0,83112.0,0.01454085]
[1743299790125,0.012031,83114.0,83113.0,0.14310978]
[1743299792564,0.0001686,83119.0,83118.0,0.01454085]
[1743299792807,0.0001686,83119.0,83118.0,0.09554085]
[1743299793197,0.0001686,83119.0,83118.0,0.10757185]
[1743299793400,0.3121986,83119.0,83118.0,0.09554085]
[1743299793605,0.3121986,83119.0,83118.0,0.09654085]
[1743299795703,0.3121986,83119.0,83118.0,0.22510978]
[1743299796912,0.3121986,83119.0,83118.0,0.21056893]
[1743299798951,0.3121986,83119.0,83118.0,0.23620582]
[1743299799155,0.3121986,83119.0,83118.0,0.21056893]
[1743299802473,0.0001686,83119.0,83118.0,0.22510978]
[1743299802680,0.0001686,83119.0,83118.0,0.23714078]
[1743299804634,0.0001686,83119.0,83118.0,0.28654078]
[1743299805760,0.0003376,83122.0,83121.0,0.38053713]
[1743299805918,0.0003376,83122.0,83121.0,0.47807798]
[1743299806587,0.0003376,83122.0,83121.0,0.52747798]
[1743299809158,0.0003376,83122.0,83121.0,0.52847798]
[1743299809495,0.0003376,83122.0,83121.0,0.53047798]
[1743299810558,0.0003376,83122.0,83121.0,0.61415872]
[1743299814181,0.0003376,83122.0,83121.0,0.53047798]
[1743299816056,0.0003376,83122.0,83121.0,0.53081518]
[1743299816261,0.0003372,83128.0,83127.0,0.01454085]
[1743299816459,0.25343053,83128.0,83127.0,0.01454085]
[1743299817642,0.25343053,83128.0,83127.0,0.01554085]
[1743299820765,0.00080953,83128.0,83127.0,0.01554085]
[1743299820966,0.00080953,83128.0,83127.0,0.10536985]
[1743299821165,0.00080953,83128.0,83127.0,0.16678724]
[1743299821774,0.00080953,83128.0,83127.0,0.10536985]
[1743299822128,0.00080953,83128.0,83127.0,0.23292638]
[1743299823953,0.00080953,83128.0,83127.0,0.22089738]
[1743299824381,0.01283853,83128.0,83127.0,0.22089738]
[1743299826891,0.01283853,83128.0,83127.0,0.12855653]
[1743299828389,0.03537691,83128.0,83127.0,0.12855653]
[1743299829816,0.01283853,83128.0,83127.0,0.12855653]
[1743299832263,0.03537222,83128.0,83127.0,0.12855653]
[1743299833083,0.01283853,83128.0,83127.0,0.12855653]
[1743299836861,0.3,83129.0,83127.0,0.12855653]
[1743299837065,0.30009655,83129.0,83127.0,0.12855653]
[1743299837645,0.012029,83128.0,83127.0,0.12855653]
[1743299837808,0.012029,83128.0,83127.0,0.12755653]
[1743299838999,0.012029,83128.0,83127.0,0.12739459]
[1743299839898,0.012029,83128.0,83127.0,0.12839459]
[1743299840641,0.03456979,83128.0,83127.0,0.12839459]
[1743299848135,0.02254079,83128.0,83127.0,0.12839459]
[1743299848711,0.02254079,83128.0,83127.0,0.32407804]
[1743299849782,0.00026515,83129.0,83128.0,0.34666185]
[1743299851432,0.3,83136.0,83131.0,0.37973944]
[1743299851633,0.3,83136.0,83135.0,0.0795]
[1743299851898,0.31386667,83136.0,83135.0,0.0795]
[1743299852103,0.31386667,83136.0,83135.0,0.09404085]
[1743299852314,0.01386667,83136.0,83135.0,0.09404085]
[1743299852497,0.3,83137.0,83135.0,0.09404085]
[1743299852695,0.002,83136.0,83135.0,0.09404085]
[1743299852995,0.002,83136.0,83135.0,0.10606885]
[1743299853213,0.3,83137.0,83136.0,0.01454085]
[1743299853530,0.304,83139.0,83136.0,0.01454085]
[1743299853729,0.304,83139.0,83137.0,0.12712944]
[1743299853904,0.304,83139.0,83137.0,0.12669453]
[1743299854273,0.304,83139.0,83137.0,0.12661849]
[1743299854673,0.31810495,83139.0,83137.0,0.12661849]
[1743299855275,0.31810495,83139.0,83137.0,0.12461849]
[1743299855524,0.31810495,83139.0,83138.0,0.01454085]
[1743299856385,0.32010495,83139.0,83138.0,0.01454085]
[1743299856851,0.32010495,83139.0,83138.0,0.06274085]
[1743299857074,0.31810495,83139.0,83138.0,0.06274085]
[1743299857447,0.31810495,83139.0,83138.0,0.18735934]
[1743299858483,0.32010495,83139.0,83138.0,0.18735934]
[1743299858864,0.31810495,83139.0,83138.0,0.42792234]
[1743299859072,0.0003372,83145.0,83144.0,0.01454085]
[1743299859225,0.0003372,83145.0,83144.0,0.01354085]
[1743299859432,0.01437306,83145.0,83140.0,0.252582]
[1743299859630,0.01437306,83145.0,83140.0,0.012027]
[1743299859879,0.01437306,83145.0,83141.0,0.012027]
[1743299860082,0.240546,83144.0,83138.0,0.138628]
[1743299861262,0.240546,83144.0,83139.0,0.01454085]
[1743299861693,0.252573,83144.0,83139.0,0.01454085]
[1743299861883,0.012027,83143.0,83139.0,0.01454085]
[1743299862091,0.252579,83143.0,83139.0,0.01454085]
[1743299862521,0.012027,83142.0,83139.0,0.01454085]
[1743299864041,0.252582,83141.0,83139.0,0.01454085]
[1743299866515,0.240555,83141.0,83139.0,0.01454085]
[1743299867384,0.0121956,83142.0,83139.0,0.01454085]
[1743299867904,0.252582,83141.0,83139.0,0.01454085]
[1743299868043,0.012027,83140.0,83139.0,0.01454085]
[1743299868766,0.012027,83141.0,83139.0,0.01454085]
[1743299868972,0.0131956,83142.0,83139.0,0.01454085]
[1743299869181,0.0121956,83142.0,83141.0,0.01454085]
[1743299870804,0.0001686,83142.0,83141.0,0.06986494]
[1743299870982,0.0001686,83142.0,83141.0,0.02656785]
[1743299871185,0.0011686,83142.0,83141.0,0.01454085]
[1743299871870,0.0001686,83142.0,83141.0,0.01454085]
[1743299872076,0.0011686,83142.0,83141.0,0.01454085]
[1743299872770,0.0011686,83142.0,83141.0,0.02656785]
[1743299872974,0.0011686,83142.0,83141.0,0.01454085]
[1743299873172,0.0131956,83142.0,83141.0,0.01454085]
[1743299874632,0.0011686,83142.0,83141.0,0.01454085]
[1743299874931,0.0131956,83142.0,83141.0,0.42664085]
[1743299877711,0.0011686,83142.0,83141.0,0.42664085]
[1743299877866,0.0131956,83142.0,83141.0,0.42664085]
[1743299879065,0.0011686,83142.0,83141.0,0.42664085]
[1743299880306,0.0131956,83142.0,83141.0,0.42664085]
[1743299881410,0.0011686,83142.0,83141.0,0.42664085]
[1743299882880,0.0131956,83142.0,83141.0,0.42664085]
[1743299886154,0.0011686,83142.0,83141.0,0.48199863]
[1743299886463,0.0011686,83142.0,83141.0,0.42664085]
[1743299888060,0.0011686,83142.0,83141.0,0.42697785]
[1743299888493,0.2417206,83142.0,83141.0,0.42697785]
[1743299888650,0.2537476,83142.0,83141.0,0.42697785]
[1743299889618,0.0011686,83142.0,83141.0,0.42697785]
[1743299890546,0.0011686,83142.0,83141.0,0.67955985]
[1743299891088,0.0011686,83142.0,83141.0,0.76025985]
[1743299891881,0.0011686,83142.0,83141.0,0.50767785]
[1743299897843,0.0011686,83142.0,83141.0,0.51970485]
[1743299899075,0.05060294,83148.0,83143.0,0.01454085]
[1743299899272,0.2528964,83149.0,83143.0,0.25508885]
[1743299899476,0.2528964,83149.0,83143.0,0.26711485]
[1743299899778,0.012026,83148.0,83143.0,0.01454085]
[1743299900125,0.252566,83147.0,83142.0,0.01454085]
[1743299900535,0.240543,83146.0,83142.0,0.01454085]
[1743299901153,0.0001686,83144.0,83142.0,0.01454085]
[1743299901509,0.0001686,83144.0,83143.0,0.42664085]
[1743299904382,0.0001686,83144.0,83143.0,0.54480694]
[1743299904592,0.0001686,83144.0,83143.0,0.43866785]
[1743299905257,0.0001686,83144.0,83143.0,0.67921685]
[1743299905657,0.0001686,83144.0,83143.0,0.42764085]
[1743299909287,0.0001686,83144.0,83143.0,0.43966785]
[1743299911266,0.0001686,83144.0,83143.0,0.42764085]
[1743299911661,0.2407146,83144.0,83143.0,0.42764085]
[1743299911886,0.2527416,83144.0,83143.0,0.42764085]
[1743299912325,0.2527416,83144.0,83143.0,0.4131]
[1743299924537,0.2527416,83144.0,83143.0,0.4134372]
[1743299931842,0.0001686,83144.0,83143.0,0.4134372]
[1743299932431,0.0001686,83144.0,83143.0,0.40385959]
[1743299932636,0.0121956,83144.0,83143.0,0.40385959]
[1743299934024,0.0001686,83144.0,83143.0,0.40385959]
[1743299934739,0.0001686,83144.0,83143.0,0.47945959]
[1743299934946,0.0001686,83144.0,83143.0,0.86686127]
[1743299935412,0.0001686,83144.0,83143.0,0.62631227]
[1743299935771,0.0001686,83144.0,83143.0,0.49400044]
[1743299936328,0.0121956,83144.0,83143.0,0.49400044]
[1743299937029,0.2527416,83144.0,83143.0,0.49400044]
[1743299942530,0.0001686,83144.0,83143.0,0.49400044]
[1743299943267,0.0001686,83144.0,83143.0,0.74657644]
[1743299945060,0.0001686,83144.0,83143.0,0.8656566]
[1743299945446,0.0001686,83144.0,83143.0,0.74657644]
[1743299946988,0.0001686,83144.0,83143.0,0.49400044]
[1743299948290,0.0001686,83144.0,83143.0,0.49375647]
[1743299951970,0.0001686,83144.0,83143.0,0.74633247]
[1743299953238,0.0001686,83144.0,83143.0,0.74533247]
[1743299953462,0.0001686,83144.0,83143.0,0.74633247]
[1743299953842,0.0001686,83144.0,83143.0,0.74533247]
[1743299954150,0.0001686,83144.0,83143.0,0.74733247]
[1743299954383,0.0001686,83144.0,83143.0,0.75033247]
[1743299962963,0.0001686,83148.0,83147.0,0.65467282]
[1743299963919,0.0001686,83148.0,83147.0,0.66921367]
[1743299964130,0.0001686,83148.0,83147.0,0.67121367]
[1743299965569,0.00021579,83148.0,83147.0,0.67121367]
[1743299965707,0.00021579,83148.0,83147.0,0.67221367]
[1743299972198,0.00021579,83148.0,83147.0,0.41965067]
[1743299980172,0.23912133,83151.0,83148.0,0.01454085]
[1743299980605,0.25114733,83151.0,83150.0,0.01454085]
[1743299981946,0.26473082,83151.0,83150.0,0.01454085]
[1743299982168,0.01358349,83151.0,83150.0,0.01454085]
[1743299982522,0.012026,83152.0,83150.0,0.01454085]
[1743299982774,0.012026,83152.0,83150.0,0.01554085]
[1743299982947,0.252552,83151.0,83150.0,0.01554085]
[1743299983380,0.252552,83151.0,83150.0,0.01454085]
[1743299985159,0.26556968,83151.0,83150.0,0.01454085]
[1743299985764,0.26556968,83151.0,83150.0,0.01554085]
[1743299986518,0.26556968,83151.0,83150.0,0.41765067]
[1743299990476,0.25354368,83151.0,83150.0,0.41765067]
[1743299992369,0.26556968,83151.0,83150.0,0.41765067]
[1743299993351,0.26556968,83151.0,83150.0,0.41798787]
[1743299993552,0.26573828,83151.0,83150.0,0.41798787]
[1743299996862,0.26573828,83151.0,83150.0,0.40344702]
[1743300000087,0.26573828,83151.0,83150.0,0.40292702]
[1743300000501,0.26573828,83151.0,83150.0,0.44325344]
[1743300000709,0.26573828,83151.0,83150.0,0.40292702]
[1743300012798,0.26573828,83151.0,83150.0,0.40244702]
[1743300013366,0.57702259,83151.0,83150.0,0.0003372]
[1743300013543,0.55257,83145.0,83144.0,0.36015176]
[1743300013942,0.58787926,83145.0,83144.0,0.36015176]
[1743300014561,0.55257,83145.0,83144.0,0.36015176]
[1743300015477,0.56281471,83145.0,83144.0,0.36015176]
[1743300016903,0.55357,83145.0,83144.0,0.36015176]
[1743300017273,0.25357,83145.0,83144.0,0.36048896]
[1743300023504,0.001,83145.0,83144.0,0.41117983]
[1743300023711,0.001,83145.0,83144.0,0.75630281]
[1743300024478,0.0001686,83151.0,83150.0,0.26709585]
[1743300024687,0.0001686,83151.0,83150.0,0.39579585]
[1743300025029,0.0001686,83151.0,83150.0,0.4090902]
[1743300026142,0.0001686,83151.0,83150.0,0.4100902]
[1743300026500,0.0001686,83151.0,83150.0,0.39779585]
[1743300028323,0.0121946,83151.0,83150.0,0.14524085]
[1743300028517,0.0001686,83151.0,83150.0,0.39779585]
[1743300028922,0.0001686,83151.0,83150.0,0.14524085]
[1743300029057,0.0001686,83151.0,83150.0,0.39779585]
[1743300029803,0.0001686,83151.0,83150.0,0.14524085]
[1743300030382,0.012025,83155.0,83150.0,0.23965601]
[1743300030607,0.012026,83152.0,83151.0,0.01454085]
[1743300031692,0.012026,83153.0,83151.0,0.01454085]
[1743300031892,0.252549,83152.0,83151.0,0.01454085]
[1743300032111,0.0123612,83161.0,83154.0,0.25505585]
[1743300032318,4.718e-05,83158.0,83156.0,0.01454085]
[1743300033295,0.01207218,83158.0,83156.0,0.01454085]
[1743300033718,0.01307218,83158.0,83156.0,0.01454085]
[1743300033920,0.240508,83157.0,83156.0,0.01454085]
[1743300034269,0.012025,83156.0,83155.0,0.09441516]
[1743300035499,0.001,83157.0,83156.0,0.26707685]
[1743300035702,0.00104718,83158.0,83157.0,0.07526585]
[1743300035945,0.00104718,83158.0,83157.0,0.16868101]
[1743300036150,4.718e-05,83158.0,83157.0,0.16868101]
[1743300037088,4.718e-05,83158.0,83157.0,0.15765601]
[1743300037957,4.718e-05,83158.0,83157.0,0.15965601]
[1743300038102,4.718e-05,83158.0,83157.0,0.16065601]
[1743300038467,0.0003372,83161.0,83158.0,0.02656585]
[1743300038809,0.0003372,83161.0,83160.0,0.01454085]
[1743300039010,0.0003372,83161.0,83160.0,0.02656585]
[1743300039213,0.0003372,83161.0,83160.0,0.12098101]
[1743300042208,0.0003372,83161.0,83160.0,0.12198101]
[1743300042706,0.0003372,83161.0,83160.0,0.12298101]
[1743300043207,0.0003372,83161.0,83160.0,0.31689151]
[1743300043712,0.004,83169.0,83168.0,0.39264085]
[1743300043911,0.00404718,83169.0,83168.0,0.39264085]
[1743300045704,0.00404718,83169.0,83168.0,0.48671881]
[1743300045901,0.00404718,83169.0,83168.0,0.48771881]
[1743300046122,0.00404718,83169.0,83168.0,0.60800364]
[1743300046485,0.00404718,83169.0,83168.0,0.61000364]
[1743300046969,0.00404718,83169.0,83168.0,0.48971881]
[1743300048565,0.02654319,83169.0,83168.0,0.48971881]
[1743300050309,0.03779798,83169.0,83168.0,0.48971881]
[1743300053456,0.01530197,83169.0,83168.0,0.48771881]
[1743300054093,0.01547057,83169.0,83168.0,0.48771881]
[1743300054290,0.01547057,83169.0,83168.0,0.56857393]
[1743300054610,0.00421578,83169.0,83168.0,0.56757393]
[1743300054810,0.00421578,83169.0,83168.0,0.57057393]
[1743300055157,0.00421578,83169.0,83168.0,0.57357393]
[1743300055570,0.00421578,83169.0,83168.0,0.57057393]
[1743300055902,0.00421578,83169.0,83168.0,0.57457393]
[1743300056768,0.0001685,83175.0,83174.0,0.012022]
[1743300056954,0.0001685,83175.0,83174.0,0.34663218]
[1743300057729,0.0001685,83175.0,83174.0,0.58709118]
[1743300057929,0.0001685,83175.0,83174.0,0.66889118]
[1743300058453,0.0001685,83175.0,83174.0,0.67189118]
[1743300058885,0.0001685,83175.0,83174.0,0.68643203]
[1743300059753,0.0001685,83175.0,83174.0,0.68343203]
[1743300061162,0.0001685,83175.0,83174.0,0.68143203]
[1743300061364,0.0001685,83175.0,83174.0,0.68443203]
[1743300061564,0.0001685,83175.0,83174.0,0.68743203]
[1743300065042,0.0001685,83175.0,83174.0,0.57844403]
[1743300068855,0.02270406,83175.0,83174.0,0.57844403]
[1743300071632,0.0001685,83175.0,83174.0,0.57844403]
[1743300072012,0.02272204,83175.0,83174.0,0.57844403]
[1743300074253,0.0001685,83183.0,83177.0,0.06714014]
[1743300074459,0.0001685,83183.0,83182.0,0.012021]
[1743300074958,0.0001685,83183.0,83182.0,0.26699785]
[1743300075602,0.0001685,83183.0,83182.0,0.26799785]
[1743300076385,0.0001685,83183.0,83182.0,0.26899785]
[1743300076807,0.0001685,83183.0,83182.0,0.31749785]
[1743300077010,0.0001685,83183.0,83182.0,0.58129781]
[1743300077978,0.0001685,83183.0,83182.0,0.58029781]
[1743300078181,0.0001685,83183.0,83182.0,0.58329781]
[1743300078578,0.0001685,83183.0,83182.0,0.58029781]
[1743300079041,0.0121895,83183.0,83182.0,0.07114014]
[1743300079429,0.0121895,83183.0,83182.0,0.07014014]
[1743300079633,0.0121895,83183.0,83182.0,0.08168099]
[1743300079918,0.0121895,83183.0,83182.0,0.08568099]
[1743300079919,0.02853692,83183.0,83182.0,0.08568099]
[1743300081157,0.0121895,83183.0,83182.0,0.09068099]
[1743300081591,0.0121895,83183.0,83182.0,0.08168099]
[1743300081789,0.0121895,83183.0,83182.0,0.08468099]
[1743300082069,0.0121895,83183.0,83182.0,0.08668099]
[1743300082893,0.0121895,83183.0,83182.0,0.07214014]
[1743300083117,0.02903992,83183.0,83182.0,0.07214014]
[1743300091083,0.0001685,83183.0,83182.0,0.1552083]
[1743300091286,0.0001685,83183.0,83182.0,0.2287062]
[1743300091493,0.31101328,83203.0,83193.0,0.01202]
[1743300091687,0.252418,83195.0,83194.0,0.06714014]
[1743300092093,0.252418,83195.0,83194.0,0.09909765]
[1743300092498,0.252418,83195.0,83194.0,0.06714014]
[1743300092903,0.26788137,83195.0,83194.0,0.06714014]
[1743300095654,0.02748237,83195.0,83194.0,0.06714014]
[1743300095857,0.01546337,83195.0,83194.0,0.06714014]
[1743300096064,0.46368323,83203.0,83195.0,0.09644085]
[1743300096397,0.02390363,83202.0,83197.0,0.01454085]
[1743300096625,0.2524,83201.0,83196.0,0.01454085]
[1743300096826,0.24051857,83203.0,83196.0,0.26695385]
[1743300096986,0.25253657,83203.0,83196.0,0.26695385]
[1743300097178,0.012018,83202.0,83196.0,0.02655985]
[1743300097702,0.012019,83201.0,83196.0,0.01454085]
[1743300098539,0.012019,83197.0,83196.0,0.01454085]
[1743300099315,0.252401,83201.0,83196.0,0.01454085]
[1743300099964,0.02793323,83202.0,83196.0,0.01454085]
[1743300100114,0.02793323,83202.0,83196.0,0.10662555]
[1743300100707,0.02793323,83202.0,83198.0,0.01454085]
[1743300101733,0.01591523,83202.0,83201.0,0.02655985]
[1743300101863,0.00014157,83203.0,83202.0,0.26693685]
[1743300102071,0.00014157,83203.0,83202.0,0.48552873]
[1743300104856,0.00014157,83203.0,83202.0,0.41797699]
[1743300105564,0.00014157,83203.0,83202.0,0.41997699]
[1743300106555,0.0001686,83206.0,83202.0,0.41997699]
[1743300106556,0.0001686,83206.0,83205.0,0.26692885]
[1743300108045,0.0001686,83206.0,83205.0,0.26892885]
[1743300108449,0.0001686,83206.0,83205.0,0.01654085]
[1743300108581,0.0001686,83206.0,83205.0,0.02955885]
[1743300109415,0.0001686,83206.0,83205.0,0.01654085]
[1743300109553,0.0121866,83206.0,83205.0,0.002]
[1743300109761,0.252388,83205.0,83204.0,0.06699857]
[1743300109982,0.252388,83205.0,83204.0,0.08153942]
[1743300111606,0.252388,83205.0,83204.0,0.08453942]
[1743300111984,0.252388,83205.0,83204.0,0.06999857]
[1743300112371,0.252388,83205.0,83204.0,0.07299857]
[1743300115612,0.2525565,83205.0,83204.0,0.07299857]
[1743300119708,0.0001685,83205.0,83204.0,0.07299857]
[1743300119913,0.0001685,83205.0,83204.0,0.16263942]
[1743300120657,0.0121865,83205.0,83204.0,0.16263942]
[1743300120860,0.0121865,83205.0,83204.0,0.08753942]
[1743300121697,0.240364,83207.0,83204.0,0.08753942]
[1743300122485,0.012018,83206.0,83204.0,0.08753942]
[1743300122681,0.012018,83206.0,83204.0,0.08153942]
[1743300122866,0.24037,83205.0,83204.0,0.08153942]
[1743300123062,0.24037,83205.0,83204.0,0.08653942]
[1743300123917,0.24037,83205.0,83204.0,0.08353942]
[1743300124050,0.24037,83205.0,83204.0,0.08653942]
[1743300124251,0.012018,83206.0,83204.0,0.08453942]
[1743300124688,0.240368,83206.0,83204.0,0.08353942]
[1743300124883,0.012018,83206.0,83204.0,0.08153942]
[1743300125082,0.252387,83206.0,83204.0,0.08153942]
[1743300125282,0.252387,83206.0,83204.0,0.08453942]
[1743300125771,0.252387,83206.0,83204.0,0.08153942]
[1743300126065,0.252387,83206.0,83204.0,0.08653942]
[1743300126408,0.252387,83206.0,83204.0,0.08353942]
[1743300126609,0.012018,83205.0,83204.0,0.08353942]
[1743300126810,0.012018,83208.0,83204.0,0.12767796]
[1743300127563,0.252382,83207.0,83204.0,0.12767796]
[1743300127774,0.252382,83207.0,83204.0,0.08453942]
[1743300128126,0.252382,83207.0,83204.0,0.08353942]
[1743300128350,0.252382,83207.0,83204.0,0.08153942]
[1743300129160,0.252382,83207.0,83204.0,0.08187642]
[1743300129364,0.25238,83208.0,83204.0,0.08387642]
[1743300129579,0.0001685,83207.0,83204.0,0.08687642]
[1743300129883,0.0001685,83207.0,83206.0,0.07435885]
[1743300130077,0.0001685,83207.0,83206.0,0.45076385]
[1743300130331,0.0001685,83207.0,83206.0,0.27597885]
[1743300130616,0.0001685,83207.0,83206.0,0.20693942]
[1743300131327,0.0001685,83207.0,83206.0,0.46232442]
[1743300131479,0.0001685,83207.0,83206.0,0.46432442]
[1743300132663,0.0001685,83207.0,83206.0,0.45932442]
[1743300133063,0.0001685,83207.0,83206.0,0.46432442]
[1743300133339,0.0001685,83207.0,83206.0,0.56370646]
[1743300134895,0.0001685,83207.0,83206.0,0.56170646]
[1743300135890,0.0363609,83227.0,83214.0,0.06666147]
[1743300136083,0.0121836,83228.0,83223.0,0.02655585]
[1743300136397,0.252321,83227.0,83223.0,0.01454085]
[1743300136573,0.012015,83224.0,83223.0,0.01454085]
[1743300136999,0.252333,83223.0,83222.0,0.01454085]
[1743300137174,0.252337,83222.0,83218.0,0.01454085]
[1743300137379,0.012015,83223.0,83218.0,0.02655685]
[1743300137578,0.012015,83223.0,83218.0,0.01454085]
[1743300137918,0.012015,83227.0,83220.0,0.02655685]
[1743300138306,0.012015,83227.0,83220.0,0.26688085]
[1743300138701,0.252324,83227.0,83220.0,0.26688085]
[1743300138906,0.252324,83227.0,83224.0,0.01454085]
[1743300139065,0.22579912,83227.0,83224.0,0.01454085]